bitfinex/quotes_ETHUSD_20250905
["timestamp","ask_amount","ask_price","bid_price","bid_amount"]
[1757036947744,11.68934533,4335.6,4335.5,0.004]
[1757036948664,16.12341105,4335.6,4335.5,0.004]
[1757036949565,16.12341105,4335.6,4335.5,1e-08]
[1757036949777,17.82341105,4335.6,4335.5,1e-08]
[1757036950365,3.09859224,4335.4,4335.3,1e-08]
[1757036950676,6.97059224,4335.4,4335.3,1e-08]
[1757036950854,7.94039224,4335.4,4335.3,1e-08]
[1757036952563,7.94039224,4335.4,4334.9,0.004]
[1757036952564,3.09869865,4335.2,4334.9,0.004]
[1757036952866,3.09869865,4335.2,4332.8,0.025]
[1757036952867,3.09885828,4334.9,4334.8,1e-08]
[1757036953172,7.19095828,4334.9,4334.8,1e-08]
[1757036954448,11.520124,4334.9,4334.8,0.30780001]
[1757036954651,11.520124,4334.9,4334.8,0.76020001]
[1757036954849,11.520124,4334.9,4334.8,0.30780001]
[1757036955638,11.520124,4334.9,4334.8,1e-08]
[1757036955844,11.619124,4334.9,4334.8,1e-08]
[1757036956137,11.520124,4334.9,4334.8,1e-08]
[1757036956341,11.520124,4334.9,4334.8,0.30780001]
[1757036956557,11.520124,4334.9,4334.8,0.76020001]
[1757036957166,11.520124,4334.9,4334.8,0.30780001]
[1757036957468,11.520124,4334.9,4334.8,1.23480001]
[1757036957772,11.520124,4334.9,4334.8,0.76020001]
[1757036959349,11.619124,4334.9,4334.8,1e-08]
[1757036961756,12.095324,4334.9,4334.8,1e-08]
[1757036963691,11.619124,4334.9,4334.8,1e-08]
[1757036966362,11.811424,4334.9,4334.8,1e-08]
[1757036968155,12.287624,4334.9,4334.8,0.00400001]
[1757036968361,12.288624,4334.9,4334.8,0.00400001]
[1757036968672,11.812424,4334.9,4334.8,0.00400001]
[1757036968884,11.521124,4334.9,4334.8,0.00400001]
[1757036969261,11.521124,4334.9,4334.8,0.76420001]
[1757036970086,7.649124,4334.9,4334.8,0.31180001]
[1757036970286,11.521124,4334.9,4334.8,1.23880001]
[1757036970703,5.42305828,4334.9,4334.8,1.23880001]
[1757036970899,10.08705828,4334.9,4334.8,1.23880001]
[1757036971309,9.29505828,4334.9,4334.8,1.23880001]
[1757036971602,10.08705828,4334.9,4334.8,1.23880001]
[1757036977697,10.08705828,4334.9,4334.8,0.00400001]
[1757036978044,10.85455828,4334.9,4334.8,0.00400001]
[1757036980220,10.85455828,4334.9,4334.8,1e-08]
[1757036980823,11.05875828,4334.9,4334.8,1e-08]
[1757036981335,3.09896472,4334.7,4334.6,1e-08]
[1757036981537,15.1919708,4334.7,4334.6,1e-08]
[1757036981736,15.4823708,4334.7,4334.6,1e-08]
[1757036982501,15.9673708,4334.7,4334.6,1e-08]
[1757036982826,11.3199708,4334.7,4334.6,0.78380001]
[1757036983030,15.1919708,4334.7,4334.6,1.26980001]
[1757036983444,15.3071708,4334.7,4334.6,1.26980001]
[1757036984954,15.3071708,4334.7,4334.6,1e-08]
[1757036985256,15.8911708,4334.7,4334.6,1e-08]
[1757036985425,15.3071708,4334.7,4334.6,1e-08]
[1757036986441,15.4061708,4334.7,4334.6,1e-08]
[1757036987143,15.3071708,4334.7,4334.6,1e-08]
[1757036988211,11.4351708,4334.7,4334.6,0.31220001]
[1757036988528,7.08616472,4334.7,4334.6,1.26980001]
[1757036991618,7.08616472,4334.7,4334.6,0.78380001]
[1757036992436,7.08616472,4334.7,4334.6,1.26980001]
[1757036994129,7.08616472,4334.7,4334.6,1e-08]
[1757036994553,7.08616472,4334.7,4334.6,0.31220001]
[1757036994844,7.08616472,4334.7,4334.6,0.78380001]
[1757036995045,7.08616472,4334.7,4334.6,1.26980001]
[1757036998356,7.08616472,4334.7,4334.6,0.78380001]
[1757036999254,7.08616472,4334.7,4334.6,0.31220001]
[1757036999830,7.08616472,4334.7,4334.6,0.78380001]
[1757037000952,7.08616472,4334.7,4334.6,1.26980001]
[1757037001351,7.08616472,4334.7,4334.6,0.78380001]
[1757037001528,7.08616472,4334.7,4334.6,0.31220001]
[1757037001729,7.18516472,4334.7,4334.6,1e-08]
[1757037002460,7.08616472,4334.7,4334.6,1e-08]
[1757037004074,0.1152,4334.7,4334.6,1.26980001]
[1757037004234,2.42316472,4334.7,4334.6,1.26980001]
[1757037008543,3.21516472,4334.7,4334.6,0.31220001]
[1757037008777,3.21516472,4334.7,4334.6,0.78380001]
[1757037013669,3.21516472,4334.7,4334.6,1e-08]
[1757037013871,3.21516472,4334.7,4334.6,0.31440001]
[1757037014064,3.21516472,4334.7,4334.6,0.78030001]
[1757037014783,2.42316472,4334.7,4334.6,0.78030001]
[1757037015082,2.42316472,4334.7,4334.6,1.24920001]
[1757037015083,0.001,4334.7,4334.6,1.24920001]
[1757037015247,0.001,4334.7,4334.6,1.72042905]
[1757037018750,0.001,4334.7,4334.6,4.02744699]
[1757037019448,0.001,4334.7,4334.6,1.72042905]
[1757037020358,0.001,4334.7,4334.6,4.02744699]
[1757037021496,0.001,4334.7,4334.6,1.72042905]
[1757037022764,0.001,4334.7,4334.6,4.02744699]
[1757037022996,0.001,4334.7,4334.6,4.05051716]
[1757037023785,0.001,4334.7,4334.6,4.02744699]
[1757037024398,0.001,4334.7,4334.6,7.02744699]
[1757037024690,0.001,4334.7,4334.6,7.11991126]
[1757037026598,0.001,4334.7,4334.6,7.19210652]
[1757037030499,0.001,4334.7,4334.6,11.06210652]
[1757037033175,0.001,4334.7,4334.6,10.98991126]
[1757037033599,0.001,4334.7,4334.6,15.42264673]
[1757037045501,0.001,4334.7,4334.6,15.54006176]
[1757037046227,0.001,4334.7,4334.6,16.33206176]
[1757037046897,0.001,4334.9,4334.7,3.792]
[1757037047102,0.001,4334.9,4334.8,9.31627529]
[1757037047399,1e-08,4335.4,4335.3,6.09864544]
[1757037047598,1e-08,4335.4,4335.3,20.53211638]
[1757037047805,1e-08,4335.4,4335.3,21.83081638]
[1757037048025,1e-08,4335.4,4335.3,24.09872435]
[1757037049506,1e-08,4335.8,4335.7,7.53116811]
[1757037049831,1e-08,4335.8,4335.7,14.39916811]
[1757037050028,1e-08,4335.8,4335.7,15.69786811]
[1757037055484,0.00100001,4335.8,4335.7,15.69786811]
[1757037055638,0.00100001,4335.8,4335.7,17.49730882]
[1757037056082,0.00100001,4335.8,4335.7,13.63030882]
[1757037056549,0.00100001,4335.8,4335.7,17.49730882]
[1757037056739,0.00100001,4335.8,4335.7,17.58972418]
[1757037057369,0.00100001,4335.8,4335.7,13.72272418]
[1757037057540,0.00100001,4335.8,4335.7,11.18048871]
[1757037057741,0.00100001,4335.8,4335.7,15.61322418]
[1757037059166,0.00100001,4335.8,4335.7,11.74722418]
[1757037059366,0.00100001,4335.8,4335.7,15.61322418]
[1757037060098,0.96560001,4335.8,4335.7,8.18048871]
[1757037060287,0.96560001,4335.8,4335.7,9.380048]
[1757037060600,0.96560001,4335.8,4335.7,2.514048]
[1757037060818,0.96560001,4335.8,4335.7,9.380048]
[1757037061316,0.96560001,4335.8,4335.7,13.81278347]
[1757037061809,0.96560001,4335.8,4335.7,9.380048]
[1757037062110,0.96560001,4335.8,4335.7,3.9812]
[1757037063709,0.96560001,4335.8,4335.7,6.28763264]
[1757037063909,0.96560001,4335.8,4335.7,3.9812]
[1757037064271,0.96560001,4335.8,4335.7,6.28763264]
[1757037064469,0.96560001,4335.8,4335.7,3.9812]
[1757037064971,0.10000001,4335.8,4335.7,6.28763264]
[1757037065184,0.57110001,4335.8,4335.7,7.8903225]
[1757037065881,0.57110001,4335.8,4335.7,6.28763264]
[1757037066599,0.10000001,4335.8,4335.7,6.28763264]
[1757037066796,0.00100001,4335.8,4335.7,6.57413264]
[1757037067002,0.00100001,4335.8,4335.7,6.28763264]
[1757037067211,0.10000001,4335.8,4335.7,10.72036811]
[1757037067510,0.10000001,4335.8,4335.7,12.79415797]
[1757037067884,0.10300001,4335.8,4335.7,12.79415797]
[1757037068304,0.00100001,4335.8,4335.7,13.08065797]
[1757037068609,0.00100001,4335.8,4335.7,12.79415797]
[1757037068990,0.10000001,4335.8,4335.7,12.79415797]
[1757037070321,0.00100001,4335.8,4335.7,15.79415797]
[1757037070532,0.00100001,4335.8,4335.7,16.08155797]
[1757037070741,0.00100001,4335.8,4335.7,17.00425797]
[1757037070903,0.001,4336.3,4336.2,6.73890215]
[1757037071092,0.001,4336.3,4336.2,15.41910215]
[1757037071292,0.001,4336.3,4336.2,16.62920215]
[1757037071492,0.001,4336.3,4336.2,16.72161772]
[1757037073493,0.001,4336.3,4336.2,17.51361772]
[1757037073692,0.001,4336.3,4336.2,19.78152569]
[1757037075192,0.001,4336.3,4336.2,18.06682569]
[1757037075618,0.001,4336.3,4336.2,18.98952569]
[1757037076233,0.001,4336.3,4336.2,18.06682569]
[1757037076752,0.001,4336.3,4336.2,18.50102569]
[1757037077240,0.001,4336.3,4336.2,17.77942569]
[1757037077943,0.001,4336.3,4336.2,18.50102569]
[1757037078618,0.001,4336.3,4336.2,18.98952569]
[1757037079610,0.001,4337.2,4337.1,2.30568813]
[1757037079813,0.001,4337.2,4337.1,12.78662633]
[1757037080112,0.001,4337.2,4337.1,15.87876945]
[1757037081020,0.2993,4337.2,4337.1,16.36586945]
[1757037081692,0.7614,4337.2,4337.1,16.36586945]
[1757037082136,0.9586,4337.2,4337.1,11.47198813]
[1757037082498,0.7614,4337.2,4337.1,11.47198813]
[1757037082905,0.9586,4337.2,4337.1,11.47198813]
[1757037084825,0.9586,4337.2,4337.1,7.60698813]
[1757037085024,0.9586,4337.2,4337.1,11.47198813]
[1757037086239,0.2993,4337.2,4337.1,11.47198813]
[1757037086437,0.2993,4337.2,4337.1,13.29303753]
[1757037086438,0.001,4337.2,4337.1,13.29303753]
[1757037087173,0.001,4337.2,4337.1,17.725773]
[1757037087563,0.001,4337.2,4337.1,18.447373]
[1757037087951,0.001,4337.2,4337.1,18.013173]
[1757037088470,0.001,4337.2,4337.1,17.725773]
[1757037089437,0.001,4337.2,4337.1,18.447373]
[1757037089642,0.001,4337.2,4337.1,18.935873]
[1757037090076,0.001,4337.2,4337.1,19.727873]
[1757037090440,1e-08,4337.8,4337.7,2.3053692]
[1757037090706,1e-08,4337.8,4337.7,13.97089528]
[1757037090845,1e-08,4337.8,4337.7,15.15794159]
[1757037091036,1e-08,4337.8,4337.7,15.25032728]
[1757037091603,1e-08,4337.8,4337.7,9.60749181]
[1757037091880,1e-08,4337.8,4337.7,14.04022728]
[1757037092048,1e-08,4337.8,4337.7,14.76182728]
[1757037094782,1e-08,4337.8,4337.7,9.60749181]
[1757037094980,0.09900001,4337.8,4337.7,9.60749181]
[1757037095346,0.56110001,4337.8,4337.7,9.60749181]
[1757037095547,0.95560001,4337.8,4337.7,9.37695489]
[1757037095867,0.95560001,4337.8,4337.7,6.37695489]
[1757037096068,0.95560001,4337.8,4337.7,6.2845692]
[1757037096484,0.95560001,4337.8,4337.7,0.1152]
[1757037096485,0.56110001,4337.8,4337.7,0.1152]
[1757037096651,0.95560001,4337.8,4337.7,3.9792]
[1757037099081,6.16726012,4337.8,4336.9,3.864]
[1757037099268,5.21166011,4337.3,4336.2,1.699]
[1757037099481,2.30568813,4337.1,4336.3,3.864]
[1757037099677,0.3097,4336.4,4336.3,6.1701135]
[1757037099848,0.6476,4337.0,4336.3,4.65091135]
[1757037100054,0.6476,4337.0,4336.3,3.864]
[1757037100248,0.3085,4336.4,4336.3,3.864]
[1757037100755,0.3085,4336.4,4336.2,1.699]
[1757037101102,0.3085,4336.4,4336.3,3.864]
[1757037101303,7.51717336,4337.5,4336.3,6.1701135]
[1757037101462,0.3975,4337.4,4336.4,0.0230606]
[1757037101670,2.30559045,4337.3,4336.5,3.864]
[1757037101863,0.3097,4336.6,4336.5,3.864]
[1757037102096,0.3085,4336.6,4336.5,3.864]
[1757037102337,0.3085,4336.6,4336.5,6.17000714]
[1757037102631,0.6476,4337.2,4336.5,7.18978468]
[1757037102833,0.3085,4336.6,4336.5,6.16996223]
[1757037103634,0.9573,4336.6,4336.5,3.864]
[1757037105518,3.26325397,4336.6,4336.5,3.864]
[1757037106786,0.9573,4336.6,4336.5,3.864]
[1757037107326,0.7702,4336.6,4336.5,3.864]
[1757037108930,0.7702,4336.6,4336.5,3.868]
[1757037111243,2.61445397,4336.6,4336.5,3.868]
[1757037112244,3.26325397,4336.6,4336.5,3.868]
[1757037112604,3.07615397,4336.6,4336.5,3.868]
[1757037113005,0.7702,4336.6,4336.5,3.868]
[1757037113407,0.46270001,4337.8,4336.5,5.66512]
[1757037113600,0.46270001,4337.8,4336.7,2.30587033]
[1757037113837,0.00100001,4337.8,4336.8,4.3308]
[1757037114046,0.00100001,4337.8,4337.7,0.2968]
[1757037114246,0.00100001,4337.8,4337.7,4.1648]
[1757037114543,0.00100001,4337.8,4337.7,3.868]
[1757037114933,0.00100001,4337.8,4337.7,4.1648]
[1757037116251,0.00100001,4337.8,4337.7,4.6276]
[1757037117661,0.00100001,4337.8,4337.7,4.1648]
[1757037117838,0.00100001,4337.8,4337.7,5.96011261]
[1757037119338,0.00100001,4337.8,4337.7,8.26548181]
[1757037120551,0.00100001,4337.8,4337.7,5.96011261]
[1757037120933,0.00100001,4337.8,4337.7,8.26548181]
[1757037123449,0.00100001,4337.8,4337.7,8.38068181]
[1757037125047,0.00100001,4337.8,4337.7,11.38068181]
[1757037128184,0.00100001,4337.8,4337.7,11.55026053]
[1757037129890,0.00100001,4337.8,4337.7,11.08746053]
[1757037130075,0.00100001,4337.8,4337.7,11.55746053]
[1757037130690,0.00100001,4337.8,4337.7,11.44226053]
[1757037130874,0.00100001,4337.8,4337.7,11.55746053]
[1757037137579,0.00100001,4337.8,4337.7,16.76685669]
[1757037138779,0.00100001,4337.8,4337.7,11.08816053]
[1757037140485,0.00100001,4337.8,4337.7,10.61816053]
[1757037140795,0.00100001,4337.8,4337.7,7.15178181]
[1757037140796,0.30360001,4337.8,4337.7,7.15178181]
[1757037140993,0.30360001,4337.8,4337.7,6.2845692]
[1757037141366,0.30360001,4337.8,4337.7,9.2845692]
[1757037142764,0.79670001,4337.8,4337.7,9.2845692]
[1757037143592,0.30360001,4337.8,4337.7,9.2845692]
[1757037143780,0.30360001,4337.8,4337.7,5.4205692]
[1757037144095,0.98970001,4337.8,4337.7,3.9792]
[1757037144793,0.98970001,4337.8,4337.7,0.1152]
[1757037144995,3.29501606,4337.8,4337.7,3.864]
[1757037145804,2.30544626,4337.6,4337.4,1.699]
[1757037146096,0.9887,4337.5,4337.4,1.699]
[1757037146292,0.9887,4337.5,4337.4,5.566]
[1757037147197,0.7946,4337.5,4337.4,5.566]
[1757037147780,0.00100001,4337.8,4337.7,2.3053692]
[1757037147967,0.00100001,4337.8,4337.7,6.19442289]
[1757037148293,0.00100001,4337.8,4337.7,10.5525692]
[1757037148901,0.00100001,4337.8,4337.7,15.76196536]
[1757037154498,0.00100001,4337.8,4337.7,10.0720692]
[1757037154699,0.00100001,4337.8,4337.7,11.52567423]
[1757037155084,0.00100001,4337.8,4337.7,11.05567423]
[1757037155808,0.00100001,4337.8,4337.7,10.74017423]
[1757037156507,0.10000001,4337.8,4337.7,10.74017423]
[1757037157306,0.00100001,4337.8,4337.7,10.74017423]
[1757037158905,0.00100001,4337.8,4337.7,11.97097423]
[1757037161484,0.00100001,4337.8,4337.7,14.31097423]
[1757037164203,0.00100001,4337.8,4337.7,14.31097423]
[1757037165612,0.00100001,4337.8,4337.7,18.73865624]
[1757037166680,0.00100001,4337.8,4337.7,16.39865624]
[1757037168497,0.00100001,4337.8,4337.7,15.93985624]
[1757037168713,0.00100001,4337.8,4337.7,15.48335624]
[1757037169090,0.00100001,4337.8,4337.7,15.93985624]
[1757037169294,0.00100001,4337.8,4337.7,15.48335624]
[1757037170025,0.00100001,4337.8,4337.7,15.93985624]
[1757037173142,0.00100001,4337.8,4337.7,10.74017423]
[1757037173422,0.10000001,4337.8,4337.7,10.74017423]
[1757037174707,0.00100001,4337.8,4337.7,10.74017423]
[1757037175090,0.00100001,4337.8,4337.7,11.03317423]
[1757037175716,0.00100001,4337.8,4337.7,10.74017423]
[1757037175918,0.10000001,4337.8,4337.7,10.74017423]
[1757037176294,0.00100001,4337.8,4337.7,10.74017423]
[1757037176494,0.00100001,4337.8,4337.7,11.03317423]
[1757037176714,0.00100001,4337.8,4337.7,11.48967423]
[1757037177302,0.00100001,4337.8,4337.7,11.03317423]
[1757037177508,0.00100001,4337.8,4337.7,11.48967423]
[1757037178301,0.00100001,4337.8,4337.7,11.03317423]
[1757037178995,0.00100001,4337.8,4337.7,10.74017423]
[1757037180227,0.29080001,4337.8,4337.7,9.2865692]
[1757037180727,0.29080001,4337.8,4337.7,10.9845692]
[1757037183540,0.78320001,4337.8,4337.7,10.9845692]
[1757037183718,0.29080001,4337.8,4337.7,10.9845692]
[1757037184819,0.78320001,4337.8,4337.7,10.9845692]
[1757037185024,0.29080001,4337.8,4337.7,10.9845692]
[1757037186224,0.00100001,4337.8,4337.7,10.9845692]
[1757037186537,0.00100001,4337.8,4337.7,11.2775692]
[1757037186739,0.00100001,4337.8,4337.7,13.44672423]
[1757037187033,0.00100001,4337.8,4337.7,13.90322423]
[1757037190038,0.00100001,4337.8,4337.7,13.15372423]
[1757037190336,0.00100001,4337.8,4337.7,10.9845692]
[1757037191233,0.10000001,4337.8,4337.7,10.9845692]
[1757037192233,0.59880001,4337.8,4337.7,10.9815692]
[1757037192535,0.00100001,4337.8,4337.7,11.2737692]
[1757037192746,0.00100001,4337.8,4337.7,13.92634423]
[1757037192915,0.00100001,4337.8,4337.7,14.35564423]
[1757037193244,0.00100001,4337.8,4337.7,13.87184423]
[1757037193626,0.00100001,4337.8,4337.7,14.35564423]
[1757037194540,0.00100001,4337.8,4337.7,13.87184423]
[1757037194722,0.00100001,4337.8,4337.7,11.2737692]
[1757037195643,0.00100001,4337.8,4337.7,10.9815692]
[1757037196146,0.10000001,4337.8,4337.7,10.9815692]
[1757037196713,0.00100001,4337.8,4337.7,10.9815692]
[1757037197009,0.10000001,4337.8,4337.7,10.9815692]
[1757037197737,0.10000001,4337.8,4337.7,11.4484302]
[1757037199243,0.00100001,4337.8,4337.7,11.4484302]
[1757037199539,0.10000001,4337.8,4337.7,11.4484302]
[1757037199745,0.59880001,4337.8,4337.7,11.4484302]
[1757037199949,0.99330001,4337.8,4337.7,6.143061]
[1757037200130,0.99330001,4337.8,4337.7,2.280061]
[1757037200447,0.99330001,4337.8,4337.7,6.143061]
[1757037205023,3.29861606,4337.8,4337.7,6.027861]
[1757037206624,3.29861606,4337.8,4337.7,4.329861]
[1757037209143,0.99330001,4337.8,4337.7,4.329861]
[1757037209333,0.59880001,4337.8,4337.7,4.329861]
[1757037209733,0.10000001,4337.8,4337.7,4.329861]
[1757037209953,2.40531606,4337.8,4337.7,4.329861]
[1757037210149,2.90411606,4337.8,4337.7,4.329861]
[1757037210827,3.29861606,4337.8,4337.7,4.329861]
[1757037211461,4.09061606,4337.8,4337.7,0.466861]
[1757037213252,7.09061606,4337.8,4337.7,0.466861]
[1757037216034,10.95361606,4337.8,4337.7,0.466861]
[1757037217566,16.16867306,4337.8,4337.7,0.466861]
[1757037221052,12.30567306,4337.8,4337.7,0.466861]
[1757037221371,16.16867306,4337.8,4337.7,0.466861]
[1757037221668,0.792,4337.4,4337.3,0.004]
[1757037221834,12.870057,4337.4,4337.3,0.004]
[1757037222036,13.859957,4337.4,4337.3,0.004]
[1757037222342,16.28068565,4337.4,4337.3,0.004]
[1757037224141,12.02608565,4337.4,4337.3,0.004]
[1757037224334,11.42778565,4337.4,4337.3,0.004]
[1757037224562,15.29078565,4337.4,4337.3,0.3137]
[1757037224763,15.29078565,4337.4,4337.3,0.7778]
[1757037225536,15.29078565,4337.4,4337.3,0.3137]
[1757037225835,15.29078565,4337.4,4337.3,0.004]
[1757037226534,12.02308565,4337.4,4337.3,0.004]
[1757037226745,15.88708565,4337.4,4337.3,0.004]
[1757037226949,15.39078565,4337.4,4337.3,0.004]
[1757037227140,15.88708565,4337.4,4337.3,0.004]
[1757037227853,16.28158565,4337.4,4337.3,0.004]
[1757037229054,15.88708565,4337.4,4337.3,0.004]
[1757037229249,6.21272865,4337.4,4337.3,0.004]
[1757037229541,2.42072865,4337.4,4337.3,1.2405]
[1757037230250,2.73632865,4337.4,4337.3,0.004]
[1757037230456,6.59932865,4337.4,4337.3,0.004]
[1757037230841,6.28372865,4337.4,4337.3,0.004]
[1757037231780,7.39002865,4337.4,4337.3,0.004]
[1757037232284,11.49878565,4337.4,4337.3,0.7778]
[1757037232468,7.63578565,4337.4,4337.3,0.7778]
[1757037233681,7.73478565,4337.4,4337.3,0.004]
[1757037234489,12.02308565,4337.4,4337.3,0.004]
[1757037236242,11.52678565,4337.4,4337.3,0.004]
[1757037236856,11.42778565,4337.4,4337.3,0.004]
[1757037237194,11.42778565,4337.4,4337.3,1.2405]
[1757037237195,9.28372865,4337.4,4337.3,1.2405]
[1757037237475,5.51972865,4337.4,4337.3,0.004]
[1757037237881,5.42072865,4337.4,4337.3,0.004]
[1757037238756,6.31472865,4337.4,4337.3,0.004]
[1757037238962,6.21272865,4337.4,4337.3,0.004]
[1757037241259,9.28372865,4337.4,4337.3,0.7764]
[1757037241468,14.49878565,4337.4,4337.3,1.2405]
[1757037241669,14.49878565,4337.4,4337.3,0.7778]
[1757037242282,14.49878565,4337.4,4337.3,0.3137]
[1757037242692,14.49878565,4337.4,4337.3,0.7778]
[1757037244287,14.49878565,4337.4,4337.3,0.3137]
[1757037245289,14.49878565,4337.4,4337.3,0.004]
[1757037246984,14.49878565,4337.4,4337.3,0.3137]
[1757037247189,14.49878565,4337.4,4337.3,0.7778]
[1757037249189,14.49878565,4337.4,4337.3,0.3137]
[1757037249764,14.49878565,4337.4,4337.3,0.004]
[1757037249993,14.59778565,4337.4,4337.3,0.004]
[1757037250765,14.49878565,4337.4,4337.3,0.004]
[1757037251959,5.42072865,4337.4,4337.3,0.8075]
[1757037252159,5.42072865,4337.4,4337.3,1.2438]
[1757037252460,0.1152,4337.4,4337.3,1.2438]
[1757037252660,0.1152,4337.4,4337.3,1.44035334]
[1757037252883,0.001,4337.7,4337.3,1.44035334]
[1757037253199,0.001,4337.7,4337.4,1.12357334]
[1757037253414,0.001,4337.7,4337.5,0.07217334]
[1757037253690,0.001,4337.7,4337.6,0.37577334]
[1757037254082,0.001,4337.7,4337.6,1.31197334]
[1757037254285,0.001,4337.7,4337.6,1.2398]
[1757037256393,0.001,4337.7,4337.6,1.388138]
[1757037256692,0.001,4337.7,4337.6,1.46029889]
[1757037257899,0.001,4337.7,4337.6,1.388138]
[1757037258412,2.30542235,4337.6,4337.3,0.004]
[1757037258574,0.001,4337.7,4337.5,0.3036]
[1757037258780,0.001,4337.7,4337.6,0.9362]
[1757037259396,2.3063692,4337.7,4337.6,1.2398]
[1757037260999,0.001,4337.7,4337.6,1.2398]
[1757037264700,2.3063692,4337.7,4337.6,1.2398]
[1757037265196,0.001,4337.7,4337.6,1.2398]
[1757037265697,2.3063692,4337.7,4337.6,1.2398]
[1757037267598,0.001,4337.7,4337.6,1.2398]
[1757037268380,2.3063692,4337.7,4337.6,1.2398]
[1757037268787,0.001,4337.7,4337.6,1.2398]
[1757037268987,0.001,4337.7,4337.6,1.44785971]
[1757037269204,0.001,4337.7,4337.6,1.44785953]
[1757037273613,0.001,4337.7,4337.6,1.3797]
[1757037276218,0.001,4337.7,4337.6,1.2438]
[1757037276422,0.001,4337.7,4337.6,0.7439]
[1757037276615,0.001,4337.7,4337.6,0.3076]
[1757037276793,0.001,4337.7,4337.6,0.7439]
[1757037277186,0.001,4337.7,4337.6,0.3076]
[1757037277715,0.1,4337.7,4337.6,0.004]
[1757037277895,2.4053692,4337.7,4337.6,0.004]
[1757037278102,3.3848692,4337.7,4337.6,0.004]
[1757037278620,2.9903692,4337.7,4337.6,0.004]
[1757037279220,8.0378692,4337.7,4337.6,0.004]
[1757037279516,11.28264065,4337.7,4337.6,0.004]
[1757037281892,10.88814065,4337.7,4337.6,0.004]
[1757037282093,3.09752865,4337.4,4337.3,0.004]
[1757037282315,12.58587737,4337.4,4337.3,0.004]
[1757037282503,13.56287737,4337.4,4337.3,0.004]
[1757037283612,3.09763497,4337.2,4337.1,1e-08]
[1757037283812,9.95863497,4337.2,4337.1,1e-08]
[1757037284016,6.89393497,4337.2,4337.1,1e-08]
[1757037284207,5.73703497,4337.2,4337.1,1e-08]
[1757037284411,10.95711224,4337.2,4337.1,1e-08]
[1757037284610,11.43851224,4337.2,4337.1,1e-08]
[1757037284811,15.29951224,4337.2,4337.1,1e-08]
[1757037285010,11.43851224,4337.2,4337.1,1e-08]
[1757037285223,15.29951224,4337.2,4337.1,1e-08]
[1757037286224,15.48031224,4337.2,4337.1,1e-08]
[1757037286527,15.29951224,4337.2,4337.1,1e-08]
[1757037288103,15.48031224,4337.2,4337.1,1e-08]
[1757037288399,11.43851224,4337.2,4337.1,1e-08]
[1757037288600,15.30051224,4337.2,4337.1,1e-08]
[1757037290729,11.43851224,4337.2,4337.1,1e-08]
[1757037290903,15.47336536,4337.2,4337.1,1e-08]
[1757037291103,19.90274263,4337.2,4337.1,1e-08]
[1757037291432,15.65416536,4337.2,4337.1,1e-08]
[1757037292529,15.47336536,4337.2,4337.1,1e-08]
[1757037292735,15.47436536,4337.2,4337.1,1e-08]
[1757037293030,15.65516536,4337.2,4337.1,1e-08]
[1757037293219,15.47436536,4337.2,4337.1,1e-08]
[1757037293804,14.99296536,4337.2,4337.1,1e-08]
[1757037295636,14.67806536,4337.2,4337.1,0.31220001]
[1757037295826,14.67806536,4337.2,4337.1,0.77990001]
[1757037297842,2.42183497,4337.2,4337.1,1.26040001]
[1757037298034,13.71321224,4337.2,4337.1,1.26040001]
[1757037298447,13.71321224,4337.2,4337.1,0.77990001]
[1757037300150,14.50521224,4337.2,4337.1,1e-08]
[1757037300334,15.08561224,4337.2,4337.1,1e-08]
[1757037300725,14.60421224,4337.2,4337.1,1e-08]
[1757037301929,6.21383497,4337.2,4337.1,0.31220001]
[1757037302119,14.50521224,4337.2,4337.1,0.31220001]
[1757037302339,14.50521224,4337.2,4337.1,1e-08]
[1757037304053,14.60421224,4337.2,4337.1,1e-08]
[1757037304257,15.08561224,4337.2,4337.1,1e-08]
[1757037306053,19.90948951,4337.2,4337.1,1e-08]
[1757037309056,0.792,4336.8,4336.6,0.004]
[1757037309224,0.792,4336.8,4336.4,0.004]
[1757037309225,10.52733124,4336.6,4336.4,0.004]
[1757037309430,12.32933124,4336.6,4336.4,0.004]
[1757037309629,12.82183124,4336.6,4336.4,0.004]
[1757037309842,12.91430813,4336.6,4336.4,0.004]
[1757037310652,13.30590813,4336.6,4336.5,1e-08]
[1757037310853,12.91430813,4336.6,4336.5,1e-08]
[1757037311261,6.09800714,4336.5,4336.4,1e-08]
[1757037311433,10.84410714,4336.5,4336.4,1e-08]
[1757037311758,10.94900714,4336.5,4336.4,1e-08]
[1757037312060,6.09821987,4336.1,4336.0,1e-08]
[1757037312354,14.38959714,4336.1,4336.0,1e-08]
[1757037312658,14.58978258,4336.1,4336.0,1e-08]
[1757037313494,14.48208258,4336.1,4336.0,1e-08]
[1757037316661,14.58108258,4336.1,4336.0,1e-08]
[1757037317770,14.48208258,4336.1,4336.0,1e-08]
[1757037319976,0.09248544,4336.1,4336.0,0.29270001]
[1757037320142,2.30621987,4336.1,4336.0,1.24760001]
[1757037320481,6.09821987,4336.1,4336.0,1.24760001]
[1757037321871,9.96021987,4336.1,4336.0,1.24760001]
[1757037326783,6.09821987,4336.1,4336.0,1.24760001]
[1757037327143,9.96021987,4336.1,4336.0,1.24760001]
[1757037327354,14.38959714,4336.1,4336.0,1.24760001]
[1757037327970,14.39059714,4336.1,4336.0,1.24760001]
[1757037330170,13.59859714,4336.1,4336.0,1.24760001]
[1757037330371,13.71379714,4336.1,4336.0,1.24760001]
[1757037330570,13.71379714,4336.1,4336.0,0.75490001]
[1757037331186,15.28859714,4336.1,4336.0,1e-08]
[1757037331381,16.18733796,4336.1,4336.0,1e-08]
[1757037331963,15.98223796,4336.1,4336.0,1e-08]
[1757037333686,15.48973796,4336.1,4336.0,1e-08]
[1757037338532,15.48973796,4336.1,4334.1,1e-08]
[1757037338533,2.30723086,4334.2,4334.1,1e-08]
[1757037338679,6.09928409,4334.1,4333.0,0.9549]
[1757037338879,5.30781657,4333.1,4333.0,0.4927]
[1757037339189,13.75839384,4333.1,4333.0,0.8009]
[1757037339392,9.32901657,4333.1,4333.0,0.8009]
[1757037339690,10.0229799,4333.1,4333.0,1.2527]
[1757037340065,3.80916333,4333.1,4333.0,1.2527]
[1757037340271,6.1169799,4333.1,4333.0,1.2527]
[1757037342294,6.9089799,4333.1,4333.0,0.3082]